Cogmind - Beta 10.2 *** ADVENTURER MODE // 2021.04.25 @ 20:33:40 Player: Catalyst Result: Destroyed by D-53 Grenadier with Mini Grenade Launcher Performance ------------- Evolutions (0) 0 Regions Visited (2) 400 Robots Destroyed (11) 55 Value Destroyed (418) 418 Prototype IDs (0) 0 Alien Tech Used (0) 0 Bonus (0) 0 TOTAL SCORE: 873 Bonus ------- None Cogmind --------- Core Integrity 0/250 Matter 250/400 Energy 96/100 System Corruption 1% Temperature Cool (0) Movement Core (100) Ox1 Location -10/Mines Parts ------- > --- POWER (1) -------- (None) > --- PROPULSION (2) --- (None) > --- UTILITY (2) ------ Medium Matter Pod > --- WEAPON (2) ------- Heavy Battle Rifle > --- INVENTORY (4) ---- Small Storage Unit Assault Rifle Datajack Peak State ------------ > --- POWER ------------ Light Nuclear Core > --- PROPULSION ------- Aluminum Leg Aluminum Leg > --- UTILITY ---------- Large Storage Unit Light Armor Plating > --- WEAPON ----------- Assault Rifle Light Assault Rifle > --- INVENTORY -------- Ion Engine Aluminum Leg Aluminum Leg Aluminum Leg Small Storage Unit Medium Matter Pod EM Pulse Gun Datajack Welding Torch Mining Claw [Rating: 10] Favorites ----------- Power Light Nuclear Core Engine Light Ion Engine Power Core Light Nuclear Core Propulsion Aluminum Leg Leg Aluminum Leg Utility Light Armor Plating Storage Small Storage Unit Processor Signal Interpreter Protection Light Armor Plating Weapon Light Assault Rifle Energy Gun Small Laser Ballistic Gun Light Assault Rifle Launcher Rocket Launcher Special Weapon Welding Torch Slashing Weapon Mining Claw Special Melee Weapon Datajack Build | -11 -10 -10 ------- Run | Scr Mat Min Slots Evolved . | . . . Power . | . . . Propulsion . | . . . Utility . | . . . Weapon . | . . . Parts Attached 32 | 6 11 15 Power 3 | 1 1 1 Engine 2 | 1 . 1 Core 1 | . 1 . Reactor . | . . . Propulsion 7 | 2 2 3 Treads . | . . . Leg 7 | 2 2 3 Wheel . | . . . Hover . | . . . Flight . | . . . Utility 8 | 1 4 3 Device . | . . . Storage 3 | 1 1 1 Processor 1 | . 1 . Hackware . | . . . Protection 4 | . 2 2 Artifact . | . . . Weapon 14 | 2 4 8 Energy Gun 2 | 1 1 . Energy Cannon . | . . . Ballistic Gun 7 | 1 . 6 Ballistic Cannon . | . . . Launcher 1 | . . 1 Special Weapon 1 | . 1 . Impact Weapon . | . . . Slashing Weapon 1 | . . 1 Piercing Weapon . | . . . Special Melee Weapon 2 | . 2 . Unidentified Prototypes . | . . . Parts Lost 12 | . 1 11 Power 2 | . . 2 Propulsion 3 | . . 3 Utility 3 | . . 3 Weapon 4 | . 1 3 Highest Loss Streak 9 | . 1 9 Average Slot Usage (%) 94 | . 92 98 Engine 8 | . 6 11 Core 5 | . 7 2 Leg 28 | . 28 28 Storage 14 | . 14 14 Protection 10 | . 8 13 Energy Gun 6 | . 9 . Ballistic Gun 16 | . 10 26 Special Weapon 1 | . 1 . Special Melee Weapon 1 | . 3 . Naked Turns . | . . . Heaviest Build 31 | 9 25 31 Greatest Support 20 | 20 20 20 Greatest Overweight (x) 1 | . 1 1 Average Overweight (x) . | . . . Largest Inventory Capacity 10 | 6 10 10 Average Capacity 7 | 5 6 9 Most Carried 10 | 2 10 10 Average Carried 6 | 1 5 9 Final Capacity 10 | 6 10 4 Final Carried 10 | 2 10 3 Class Distribution -------------------- 100% | Mutant Dominant Class ---------------- Mutant | -10/Materials Mutant | -10/Mines Resources | -11 -10 -10 ----------- Run | Scr Mat Min Matter Collected 535 | 173 159 203 Remotely . | . . . Salvage Created 449 | . 219 230 Parts 30 | . 16 14 Haulers Intercepted . | . . . Recyclers Shooed . | . . . Parts Field Recycled . | . . . Retrieved Matter . | . . . Parts Self-Destructed . | . . . Prevented . | . . . Kills | -11 -10 -10 ------- Run | Scr Mat Min Combat Hostiles Destroyed 14 | . 4 10 Guns 9 | . 3 6 Cannons 1 | . 1 . AOE 4 | . . 4 Classes Destroyed 5 | . 2 3 Watcher 2 | . 2 . Grunt 6 | . 4 2 Sentry 2 | . . 2 Demolisher 1 | . . 1 Assembled 5 | . . 5 Best Kill Streak 6 | . 4 6 Combat Bots Only 6 | . 2 6 Max Kills in Single Turn 3 | . 1 3 Gunslinging . | . . . Exploded 3 | . . 3 Melee . | . . . Uniques/NPCs Destroyed . | . . . Combat | -11 -10 -10 -------- Run | Scr Mat Min Damage Taken 1481 | . 239 1242 Core 257 | . . 257 Absorbed by Shields . | . . . Core Remaining (%) 100 | 100 . . Volleys Fired 45 | . 28 17 Largest 2 | . 2 2 Hottest 60 | . 60 56 Shots Fired 77 | . 47 30 Gun 53 | . 27 26 Cannon . | . . . Launcher 4 | . . 4 Special 20 | . 20 . Kinetic 45 | . 19 26 Thermal 20 | . 20 . Explosive 4 | . . 4 Electromagnetic 8 | . 8 . Robot Hit Streak 19 | . 15 19 Robot Miss Streak 2 | . 1 2 Penetration Max . | . . . Secondary Targets 1 | . . 1 Max Gunslinging Chain 1 | . . 1 Shots Hit Robots 59 | . 33 26 Core Hits 36 | . 15 21 Critical Hits . | . . . Critical Kills . | . . . Critical Parts Destroyed . | . . . Melee Attacks 3 | . 2 1 Impact . | . . . Slashing 1 | . . 1 Piercing . | . . . Sneak Attacks 2 | . 2 . Combat Hostiles . | . . . Follow-up Attacks . | . . . Damage Inflicted 854 | . 237 617 Guns 520 | . 212 308 Cannons . | . . . Explosions 309 | . . 309 Melee . | . . . Ramming . | . . . Kinetic 412 | . 104 308 Thermal 25 | . 25 . Explosive 309 | . . 309 Electromagnetic 108 | . 108 . Impact . | . . . Slashing . | . . . Piercing . | . . . Highest Corruption 1 | . 1 1 Average Corruption 1 | . 1 1 Corruption Purged . | . . . Effects 2 | . 1 1 Energy Discharges 1 | . 1 . Data Loss (minor) 1 | . . 1 Overload Shots . | . . . Overflow Damage 6 | . . 6 Projectiles . | . . . Explosions 6 | . . 6 Melee . | . . . Knockbacks . | . . . Impact . | . . . Kinetic . | . . . Secondary . | . . . Self-Inflicted Damage . | . . . Shots . | . . . Rammed . | . . . Targets Rammed . | . . . Kicked . | . . . Crushed . | . . . Highest Temperature 84 | . 84 43 Average Temperature 18 | . 21 11 Received Heat Transfer 225 | . 141 84 Siege Activations . | . . . Robots Corrupted . | . . . Combat Hostiles . | . . . Parts Fried . | . . . Impact Corruptions . | . . . Robots Melted . | . . . Combat Hostiles . | . . . Parts Melted . | . . . Heat Transferred 225 | . 225 . Parts Sabotaged . | . . . Parts Stolen . | . . . Parts Stripped . | . . . Power Chain Reactions . | . . . Missiles Intercepted . | . . . Alert | -11 -10 -10 ------- Run | Scr Mat Min Peak Influence 121 | . 112 121 Initial 36 | . . 36 Average 70 | . 57 102 Maximum Alert Level . | . . . Low Security (%) 100 | 100 100 100 Level 1 . | . . . Level 2 . | . . . Level 3 . | . . . Level 4 . | . . . Level 5 . | . . . High Security . | . . . Max Security . | . . . Squads Dispatched . | . . . Investigation . | . . . Extermination . | . . . Reinforcement . | . . . Assault . | . . . Garrison . | . . . Intercept . | . . . Construction Impeded . | . . . Haulers Reinforced . | . . . Stealth | -11 -10 -10 --------- Run | Scr Mat Min Distress Signals 1 | . 1 . Communications Jammed . | . . . Distress Signals . | . . . Times Spotted 29 | . 9 20 Peak Tracking Total 9 | . 4 9 Tactical Retreats 1 | . 1 . Traps | -11 -10 -10 ------- Run | Scr Mat Min Traps Triggered 1 | . 1 . Indirectly . | . . . Trap Hack Attempts . | . . . Triggered . | . . . Disarmed . | . . . Reprogrammed . | . . . Reused . | . . . Traps Extracted . | . . . Installed . | . . . Triggered . | . . . Machines | -11 -10 -10 ---------- Run | Scr Mat Min Machines Disabled . | . . . Max in Single Turn . | . . . Machines Sabotaged . | . . . Garrisons Compromised . | . . . Overloaded Fab Kills . | . . . Fab Network Shutdowns . | . . . Hacking | -11 -10 -10 --------- Run | Scr Mat Min Machines Accessed 7 | . 7 . Terminals 5 | . 5 . Fabricators . | . . . Repair Stations 1 | . 1 . Recycling Units 1 | . 1 . Scanalyzers . | . . . Garrison Access . | . . . Total Hacks 12 | . 12 . Successful 6 | . 6 . Failed 6 | . 6 . Catastrophic 1 | . 1 . Database Lockouts . | . . . Manual 12 | . 12 . Terminals 10 | . 10 . Fabricators . | . . . Repair Stations 1 | . 1 . Recycling Units 1 | . 1 . Scanalyzers . | . . . Garrison Access . | . . . Terminal Hacks 1 | . 1 . Branch Access Points 1 | . 1 . Fabricator Hacks . | . . . Repair Station Hacks 1 | . 1 . Refit 1 | . 1 . Recycling Unit Hacks . | . . . Scanalyzer . | . . . Garrison Access Hacks . | . . . Unauthorized Hacks 4 | . 4 . Terminals 3 | . 3 . Botnet 3 | . 3 . Fabricators . | . . . Repair Stations . | . . . Recycling Units 1 | . 1 . Recyclers 1 | . 1 . Scanalyzers . | . . . Garrison Access . | . . . Data Cores Recovered . | . . . Used . | . . . Hacking Detections 5 | . 5 . Full Trace Events 2 | . 2 . Feedback Events . | . . . Feedback Blocked . | . . . Robot Schematics Acquired . | . . . Robots Built . | . . . Matter . | . . . Time . | . . . Total Robot Build Rating . | . . . Part Schematics Acquired . | . . . Parts Built . | . . . Matter . | . . . Time . | . . . Total Part Build Rating . | . . . Parts Repaired . | . . . Time . | . . . Parts Recycled . | . . . Recycled Matter . | . . . Retrieved Matter . | . . . Retrieved Components . | . . . Parts Scanalyzed . | . . . Part Schematics Acquired . | . . . Parts Damaged . | . . . Bothacking | -11 -10 -10 ------------ Run | Scr Mat Min Used RIF Installer . | . . . Robots Hacked . | . . . Non-combat . | . . . Combat . | . . . Robot Hacks Applied . | . . . Relay Couplers Released . | . . . Robots Rewired . | . . . Allies Hacked . | . . . Hacks Repelled . | . . . Allies | -11 -10 -10 -------- Run | Scr Mat Min Total Allies . | . . . Largest Group . | . . . Highest-Rated Group . | . . . Highest-Rated Ally . | . . . Total Orders . | . . . Ally Attacks . | . . . Total Damage . | . . . Kills . | . . . Allies Corrupted . | . . . Allies Melted . | . . . Intel | -11 -10 -10 ------- Run | Scr Mat Min Robot Analysis Total . | . . . Derelict Logs Recovered 1 | . . 1 Drone Launches . | . . . Drone Recoveries . | . . . Exploration | -11 -10 -10 ------------- Run | Scr Mat Min Turns Passed 1278 | 64 771 443 Spaces Moved 782 | 47 497 238 Core 4 | 4 . . Treads . | . . . Legs 778 | 43 497 238 Wheels . | . . . Hover . | . . . Flight . | . . . Fastest Speed 50 | 50 120 120 Average Speed 132 | 114 125 149 Slowest Speed 150 | 120 150 150 Overloaded Moves . | . . . Propulsion Burnouts . | . . . Robots Hopped . | . . . Cave-ins Triggered . | . . . Exploration Rate (%) 37 | 3 61 49 Regions Visited 2 Branch Regions 1 Pre-discovered Areas . | . . . Known Exits Taken 1 | . 1 . Unknown Exits Taken 1 | 1 . . Scrap Searched . | . . . Spaces Dug . | . . . Terrain Destroyed 45 | . . 45 Melee . | . . . Projectile . | . . . AOE 45 | . . 45 Terrain Rammed . | . . . Walls Destroyed . | . . . Machines Disabled . | . . . Actions | -11 -10 -10 --------- Run | Scr Mat Min Total 950 | 54 601 295 Wait 53 | . 39 14 Move 780 | 46 496 238 Hop . | . . . Pick Up 18 | 2 12 4 Fast Attach 12 | 6 3 3 Attach 7 | . 3 4 Detach 5 | . 5 . Swap 13 | . 5 8 Drop 14 | . 8 6 Fire 45 | . 28 17 Melee 3 | . 2 1 Ram . | . . . Kick . | . . . Crush . | . . . Escape Stasis . | . . . Rewire . | . . . Trap . | . . . Miscellaneous . | . . . Route ------- -11/Scrapyard -10/Materials (discovered 3 exits: [*Mat] / *Min x2) -10/Mines (discovered 1 exit: [*Mat]) History --------- Turn | Location | Event 13 | -11/Scrapyard | Discovered new exit (range 16) 65 | -11/Scrapyard | Entered Materials 152 | -10/Materials | Identified exit to Mines 333 | -10/Materials | Build established: Mutant 577 | -10/Materials | Discovered new exit (range 9) 836 | -10/Materials | Entered Mines 941 | -10/Mines | Learned Materials terminal intel 1085 | -10/Mines | Discovered new exit (range 14) 1097 | -10/Mines | A weapon hastily lodged in a ceiling crevice suddenly fell to the ground 1201 | -10/Mines | Received a Rocket Launcher from a helpful Derelict 1221 | -10/Mines | Assembled infested the area 1264 | -10/Mines | Core integrity fell below 50% 1278 | -10/Mines | Core integrity fell below 20% 1279 | -10/Mines | Destroyed by D-53 Grenadier with Mini Grenade Launcher Last Messages --------------- 01261_ The unstable cave ceiling collapses. 01261_ Hvy. Assault Rifle destroyed. 01262_ The unstable cave ceiling collapses. 01262_ Aluminum Leg destroyed. 01263_ The unstable cave ceiling collapses. 01267_ Mining Claw destroyed. 01267_ Lrg. Storage Unit destroyed. 01267_ Acquired Med. Matter Pod. 01268_ The unstable cave ceiling collapses. 01268_ Ion Engine destroyed. 01270_ Acquired Hvy. Assault Rifle. 01271_ The unstable cave ceiling collapses. 01272_ Aluminum Leg destroyed. 01274_ Hvy. Assault Rifle destroyed. 01274_ U-05 Engineer lays Concrete. 01275_ The unstable cave ceiling collapses. 01275_ as-27776 destroyed. 01275_ U-05 Engineer builds a Wall. 01276_ The unstable cave ceiling collapses. 01277_ D-53 Grenadier destroyed. Map ----- +----------------------------------------------------+ | ?????????????????????????????????????????????????? | | ?????????????????????????????????????????????????? | | ?????????????????????????????????????????????????? | | ?????????????????????????????????????????????????? | | ?????????????????????????????????????????????????? | | ?????????????????????????????????????????????????? | | ?????????????????????????????????????????????????? | | ?????????????????????????????????????????????????? | | ?????????????????????????????????????????????????? | | ?????????????????????????=%=?????????????????????? | | ?????????????????????????% %?????????????????????? | | ????????????????????????? $###??????????????????? | | ????????????????????????? %a ?#????????????????? | | ????????????????????????? a #????????????????? | | ???????????????????????### a # #????????????????? | | ???????????????????????# a# # #????????????????? | | ??????????????????????## # #????????????????? | | ??????????????????????# %% #????????????????? | | ??????????????????????# # #????????????????? | | ??????????????????????# # #????????????????? | | ?????????????????????## #????????????????? | | ?????????????????????# #????????????????? | | ????????????????????## % #????????????????? | | ????????????????????# #????????????????? | | ????????????????????# #????????????????? | | ???????????????####?# @ #????????????????? | | ??????????????## ## d ####?????????????? | | ??????????????# ## ##????????????? | | ??????????????# ## #????????????? | | ??????????????# ## #????????????? | | ??????????????# ###### ### ??????? | | ?????????????# %#### "???????? | | ???????? #u ## ????????? | | ???????? ## ### #?????????????? | | ???????? ?####?# #???????????????? | | ????????## ???????##[ #######???????????????? | | ?????????## ?????????## #?????????????????????? | | ??????????# ???????????# #?????????????????????? | | ??????????##??????####??# #?????????????????????? | | ?????????????????## #?# #?????????????????????? | | ????????????????## ## #?????????????????????? | | ???????????????## #?????????????????????? | | ########??????## #?????????????????????? | | # #??????# ##????????????????????? | | #?????# ## ###??????????????????? | | # #?????# ??## ##?????????????????? | | # #???## ????## ###???????????????? | | # [ #??## ?????# ## ##??????????????? | | # =!=#??# ??????# ##### ##??####???????? | | # #??? ??????# #???# #??# ##??????? | +----------------------------------------------------+ Best States ------------- Heat Dissipation 25 Energy Generation 14 Energy Capacity 250 Matter Stores 300 Matter Capacity 400 Sight Range 16 Terrain Scan Density 10 Armor Coverage 150 Resistance: KI 20 Resistance: TH 20 Resistance: EX 20 Resistance: EM 20 Resistance: I 20 Resistance: S 20 Resistance: P 20 Evasion (%) 40 Offensive Hacking 10 Item Schematics ----------------- None Robot Schematics ------------------ None Fabricated ------------ Nothing Alien Tech Used ----------------- None Achievements -------------- Quantum Hacking Challenges ------------ None Game ------ Seed AlertRagnarokLeg Manual? 0 Play Time 00:21:36 Cumulative 27.4 hours Start 2021.04.25 @ 18:10:36 End 2021.04.25 @ 20:33:40 Sessions 2 Manual Loads 0 Difficulty Adventurer Special Mode None Game No. 12 Rogue 0 Adventurer 12 Explorer 0 Win Type - Total 1 Types 1/0/0/0/0/0/0/0/0 Lore% 18 Gallery% 30 Achievement% 30 Wizard Run 0 Options --------- ASCII 0 Keyboard 0 Movement Arrows Keybinds 0 Fullscreen 1 Font 14/Dina Map View 72x54 Tactical HUD 1 Map Filters NONE Filters NONE Steam 1 RUN: eea426b9-a21f-4488-848d-ec3100335fa8